fUSD/lending_fUSD_20240826
["ID","MTS","AMOUNT","RATE_DAILY","PERIOD"]
[336049412,1724681444148,-500.0,0.00010986,2]
[336049414,1724681444159,-500.0,0.00010986,2]
[336049416,1724681444175,-500.0,0.00010986,2]
[336049418,1724681444185,-539.58,0.00010986,2]
[336049420,1724681444195,-500.0,0.00010986,2]
[336049422,1724681444204,-500.0,0.00010986,2]
[336049424,1724681444213,-500.0,0.00010986,2]
[336049426,1724681444222,-500.0,0.00010986,2]
[336049428,1724681444231,-573.21200199,0.00010986,2]
[336049430,1724681444241,-1984.26,0.00010986,2]
[336049432,1724681444250,-558.56,0.00010986,2]
[336049434,1724681444260,-500.0,0.00010986,2]
[336049436,1724681444269,-500.0,0.00010986,2]
[336049438,1724681444279,-500.0,0.00010986,2]
[336049440,1724681444289,-500.0,0.00010986,2]
[336049442,1724681444298,-500.0,0.00010986,2]
[336049444,1724681444307,-500.0,0.00010986,2]
[336049446,1724681444316,-500.0,0.00010986,2]
[336049448,1724681444326,-558.57,0.00010986,2]
[336049450,1724681444335,-500.0,0.00010986,2]
[336049452,1724681444344,-154474.0,0.00010986,2]
[336049454,1724681444355,-593.0,0.00010986,2]
[336049456,1724681444364,-3202.91,0.00010987,2]
[336049458,1724681444376,-500.0,0.00010987,2]
[336049460,1724681444387,-500.0,0.00010987,2]
[336049462,1724681444396,-500.0,0.00010987,2]
[336049464,1724681444406,-500.0,0.00010987,2]
[336049466,1724681444424,-500.0,0.00010987,2]
[336049468,1724681444433,-500.0,0.00010987,2]
[336049470,1724681444443,-913.09,0.00010987,2]
[336049472,1724681444455,-650.68,0.00010987,2]
[336049474,1724681444465,-2311.05,0.00010987,2]
[336049476,1724681444474,-1524.25,0.00010987,2]
[336049478,1724681444483,-500.0,0.00010987,2]
[336049480,1724681444492,-1924.9,0.00010987,2]
[336049482,1724681444502,-1727.1,0.00010987,2]
[336049484,1724681444511,-1270.54,0.00010987,2]
[336049486,1724681444519,-2612.87,0.00010987,2]
[336049488,1724681444529,-500.0,0.00010987,2]
[336049490,1724681444538,-1078.42,0.00010987,2]
[336049491,1724681444547,-2612.21,0.00010987,2]
[336049493,1724681444557,-2132.02,0.00010987,2]
[336049495,1724681444567,-500.0,0.00010987,2]
[336049497,1724681444577,-3682.66,0.00010987,2]
[336049499,1724681444586,-500.0,0.00010987,2]
[336049501,1724681444596,-2208.34,0.00010987,2]
[336049503,1724681444606,-2668.49,0.00010987,2]
[336049504,1724681444615,-2194.97,0.00010987,2]
[336049505,1724681444625,-500.0,0.00010987,2]
[336049506,1724681444634,-664.33,0.00010987,2]
[336049507,1724681444644,-500.0,0.00010987,2]
[336049508,1724681444653,-688.81,0.00010987,2]
[336049509,1724681444664,-1418.38,0.00010987,2]
[336049510,1724681444674,-458.49,0.00010987,2]
[336049511,1724681444683,-500.0,0.00010987,2]
[336049512,1724681444692,-1522.42,0.00010987,2]
[336049513,1724681444702,-500.0,0.00010987,2]
[336049514,1724681444711,-500.0,0.00010987,2]
[336049515,1724681444720,-500.0,0.00010987,2]
[336049516,1724681444729,-501.41,0.00010987,2]
[336049517,1724681444739,-800.47,0.00010987,2]
[336049518,1724681444749,-500.0,0.00010987,2]
[336049519,1724681444758,-1144.09,0.00010987,2]
[336049520,1724681444767,-2365.59,0.00010987,2]
[336049522,1724681444777,-702.5,0.00010987,2]
[336049523,1724681444786,-1298.58,0.00010987,2]
[336049525,1724681444796,-719.89,0.00010987,2]
[336049527,1724681444805,-594.9,0.00010987,2]
[336049529,1724681444815,-3216.79,0.00010987,2]
[336049531,1724681444824,-500.0,0.00010987,2]
[336049533,1724681444833,-500.0,0.00010987,2]
[336049535,1724681444842,-500.0,0.00010987,2]
[336049537,1724681444851,-1166.44,0.00010987,2]
[336049539,1724681444861,-500.0,0.00010987,2]
[336049541,1724681444870,-655.44,0.00010987,2]
[336049543,1724681444879,-500.0,0.00010987,2]
[336049545,1724681444889,-500.0,0.00010987,2]
[336049547,1724681444899,-500.0,0.00010987,2]
[336049549,1724681444911,-1984.63,0.00010987,2]
[336049551,1724681444921,-1776.77,0.00010987,2]
[336049553,1724681444931,-500.0,0.00010987,2]
[336049555,1724681444940,-1124.24,0.00010987,2]
[336049557,1724681444949,-500.0,0.00010987,2]
[336049559,1724681444958,-3353.25,0.00010987,2]
[336049561,1724681444968,-1990.71,0.00010987,2]
[336049563,1724681444978,-2842.26,0.00010987,2]
[336049565,1724681444988,-1951.32,0.00010987,2]
[336049567,1724681444997,-500.0,0.00010987,2]
[336049569,1724681445007,-500.0,0.00010987,2]
[336049571,1724681445016,-4355.06,0.00010987,2]
[336049573,1724681445026,-3574.35,0.00010987,2]
[336049575,1724681445035,-500.0,0.00010988,2]
[336049577,1724681445044,-500.0,0.00010988,2]
[336049579,1724681445054,-500.0,0.00010988,2]
[336049581,1724681445063,-357.4312575,0.00010988,2]
[336049583,1724681445072,-500.0,0.00010988,2]
[336049585,1724681445082,-500.0,0.00010988,2]
[336049586,1724681445091,-500.0,0.00010988,2]
[336049588,1724681445101,-500.0,0.00010988,2]
[336049590,1724681445110,-500.0,0.00010988,2]
[336049592,1724681445120,-500.0,0.00010988,2]
[336049594,1724681445130,-500.0,0.00010988,2]
[336049596,1724681445140,-500.0,0.00010988,2]
[336049598,1724681445151,-500.0,0.00010988,2]
[336049600,1724681445163,-500.0,0.00010988,2]
[336049602,1724681445172,-500.0,0.00010988,2]
[336049605,1724681445182,-172.99304463,0.00010988,2]
[336049607,1724681445192,-500.0,0.00010988,2]
[336049609,1724681445201,-500.0,0.00010988,2]
[336049611,1724681445211,-511.11457259,0.00010988,2]
[336049613,1724681445220,-500.0,0.00010988,2]
[336049615,1724681445230,-500.0,0.00010988,2]
[336049617,1724681445239,-500.0,0.00010988,2]
[336049619,1724681445250,-500.0,0.00010988,2]
[336049621,1724681445259,-500.0,0.00010988,2]
[336049623,1724681445268,-500.0,0.00010988,2]
[336049625,1724681445278,-613.39419667,0.00010988,2]
[336049627,1724681445287,-500.0,0.00010988,2]
[336049629,1724681445297,-1102.37,0.00010988,2]
[336049631,1724681445306,-500.0,0.00010988,2]
[336049633,1724681445315,-500.0,0.00010988,2]
[336049636,1724681445325,-500.0,0.00010988,2]
[336049639,1724681445335,-500.0,0.00010988,2]
[336049642,1724681445345,-500.0,0.00010988,2]
[336049644,1724681445355,-500.0,0.00010988,2]
[336049646,1724681445364,-500.0,0.00010988,2]
[336049648,1724681445375,-500.0,0.00010988,2]
[336049649,1724681445386,-500.0,0.00010988,2]
[336049651,1724681445396,-500.0,0.00010988,2]
[336049653,1724681445405,-500.0,0.00010988,2]
[336049655,1724681445417,-1611.77,0.00010988,2]
[336049657,1724681445426,-500.0,0.00010988,2]
[336049660,1724681445435,-500.0,0.00010988,2]
[336049662,1724681445445,-500.0,0.00010988,2]
[336049664,1724681445457,-500.0,0.00010988,2]
[336049667,1724681445469,-500.0,0.00010988,2]
[336049668,1724681445479,-500.0,0.00010988,2]
[336049670,1724681445488,-500.0,0.00010988,2]
[336049673,1724681445498,-500.0,0.00010988,2]
[336049675,1724681445508,-500.0,0.00010988,2]
[336049677,1724681445518,-500.0,0.00010988,2]
[336049679,1724681445528,-500.0,0.00010988,2]
[336049681,1724681445537,-628.36631609,0.00010988,2]
[336049683,1724681445548,-500.0,0.00010988,2]
[336049685,1724681445557,-500.0,0.00010988,2]
[336049687,1724681445566,-762.97,0.00010988,2]
[336049689,1724681445575,-500.0,0.00010988,2]
[336049691,1724681445585,-500.0,0.00010988,2]
[336049692,1724681445595,-1801.29,0.00010988,2]
[336049694,1724681445604,-500.0,0.00010988,2]
[336049696,1724681445613,-1452.84,0.00010988,2]
[336049698,1724681445622,-500.0,0.00010988,2]
[336049700,1724681445631,-500.0,0.00010988,2]
[336049702,1724681445640,-1411.78,0.00010988,2]
[336049704,1724681445649,-500.0,0.00010988,2]
[336049706,1724681445660,-685.2,0.00010988,2]
[336049708,1724681445668,-500.0,0.00010988,2]
[336049710,1724681445678,-500.0,0.00010988,2]
[336049712,1724681445687,-500.0,0.00010988,2]
[336049714,1724681445696,-500.0,0.00010988,2]
[336049716,1724681445706,-500.0,0.00010988,2]
[336049718,1724681445717,-1882.19,0.00010988,2]
[336049720,1724681445727,-928.36,0.00010988,2]
[336049723,1724681445737,-592.42,0.00010988,2]
[336049725,1724681445747,-538.68,0.00010988,2]
[336049727,1724681445757,-500.0,0.00010988,2]
[336049729,1724681445765,-500.0,0.00010988,2]
[336049731,1724681445775,-500.0,0.00010988,2]
[336049732,1724681445784,-500.0,0.00010988,2]
[336049734,1724681445792,-500.0,0.00010988,2]
[336049736,1724681445802,-500.0,0.00010988,2]
[336049738,1724681445811,-500.0,0.00010988,2]
[336049740,1724681445820,-500.0,0.00010988,2]
[336049742,1724681445829,-500.0,0.00010988,2]
[336049744,1724681445839,-500.0,0.00010988,2]
[336049746,1724681445848,-500.0,0.00010988,2]
[336049748,1724681445857,-500.0,0.00010988,2]
[336049750,1724681445866,-1807.5,0.00010988,2]
[336049752,1724681445876,-500.0,0.00010988,2]
[336049754,1724681445885,-500.0,0.00010988,2]
[336049756,1724681445894,-500.0,0.00010988,2]
[336049758,1724681445905,-181.27524884,0.00010988,2]
[336049760,1724681445917,-548.41,0.00010988,2]
[336049762,1724681445926,-500.0,0.00010988,2]
[336049764,1724681445935,-500.0,0.00010988,2]
[336049767,1724681445944,-500.0,0.00010988,2]
[336049770,1724681445953,-500.0,0.00010988,2]
[336049772,1724681445964,-500.0,0.00010988,2]
[336049774,1724681445974,-500.0,0.00010988,2]
[336049776,1724681445983,-844.88,0.00010988,2]
[336049778,1724681445993,-500.0,0.00010988,2]
[336049780,1724681446001,-500.0,0.00010988,2]
[336049782,1724681446011,-500.0,0.00010988,2]
[336049784,1724681446020,-500.0,0.00010988,2]
[336049785,1724681446029,-500.0,0.00010988,2]
[336049788,1724681446039,-500.0,0.00010988,2]
[336049789,1724681446047,-500.0,0.00010988,2]
[336049791,1724681446057,-500.0,0.00010988,2]
[336049793,1724681446066,-892.07,0.00010988,2]
[336049795,1724681446075,-1088.91,0.00010988,2]
[336049797,1724681446085,-500.0,0.00010988,2]
[336049799,1724681446094,-500.0,0.00010988,2]
[336049801,1724681446104,-500.0,0.00010988,2]
[336049803,1724681446113,-500.0,0.00010988,2]
[336049805,1724681446124,-500.0,0.00010988,2]
[336049807,1724681446133,-500.0,0.00010988,2]
[336049809,1724681446143,-618.33,0.00010988,2]
[336049811,1724681446152,-544.61,0.00010988,2]
[336049813,1724681446163,-500.0,0.00010988,2]
[336049815,1724681446173,-500.0,0.00010988,2]
[336049817,1724681446182,-500.0,0.00010988,2]
[336049819,1724681446191,-500.0,0.00010988,2]
[336049821,1724681446200,-500.0,0.00010988,2]
[336049823,1724681446210,-500.0,0.00010988,2]
[336049825,1724681446218,-694.29,0.00010988,2]
[336049827,1724681446229,-500.0,0.00010988,2]
[336049829,1724681446238,-500.0,0.00010988,2]
[336049831,1724681446247,-591.12,0.00010988,2]
[336049833,1724681446257,-500.0,0.00010988,2]
[336049835,1724681446267,-500.0,0.00010988,2]
[336049837,1724681446278,-500.0,0.00010988,2]
[336049839,1724681446287,-1775.47,0.00010988,2]
[336049841,1724681446298,-1194.46,0.00010988,2]
[336049844,1724681446308,-943.79,0.00010988,2]
[336049846,1724681446317,-500.0,0.00010988,2]
[336049848,1724681446328,-505.54,0.00010988,2]
[336049850,1724681446338,-500.0,0.00010988,2]
[336049852,1724681446348,-500.0,0.00010988,2]
[336049854,1724681446360,-500.0,0.00010988,2]
[336049856,1724681446370,-500.0,0.00010988,2]
[336049858,1724681446383,-500.0,0.00010988,2]
[336049860,1724681446392,-500.0,0.00010988,2]
[336049862,1724681446401,-556.02,0.00010988,2]
[336049864,1724681446414,-500.0,0.00010988,2]
[336049866,1724681446423,-500.0,0.00010988,2]
[336049868,1724681446432,-957.91,0.00010988,2]
[336049870,1724681446441,-500.0,0.00010988,2]
[336049872,1724681446450,-500.0,0.00010988,2]
[336049874,1724681446461,-500.0,0.00010988,2]
[336049876,1724681446471,-500.0,0.00010988,2]
[336049878,1724681446480,-500.0,0.00010988,2]
[336049880,1724681446489,-500.0,0.00010988,2]
[336049882,1724681446498,-500.0,0.00010988,2]
[336049884,1724681446507,-500.0,0.00010988,2]
[336049886,1724681446516,-1543.33,0.00010988,2]
[336049888,1724681446525,-500.0,0.00010988,2]
[336049890,1724681446535,-500.0,0.00010988,2]
[336049892,1724681446544,-500.0,0.00010988,2]
[336049894,1724681446553,-500.0,0.00010988,2]
[336049896,1724681446562,-500.0,0.00010988,2]
[336049898,1724681446572,-500.0,0.00010988,2]
[336049900,1724681446582,-500.45939845,0.00010988,2]
[336049901,1724681446591,-500.0,0.00010988,2]
[336049904,1724681446601,-500.0,0.00010988,2]
[336049906,1724681446610,-500.0,0.00010988,2]
[336049920,1724681446745,-710.85,0.00010988,2]
[336049923,1724681446754,-1632.12,0.00010988,2]
[336049924,1724681446764,-574.17,0.00010988,2]
[336049926,1724681446774,-500.0,0.00010988,2]
[336049928,1724681446783,-500.0,0.00010988,2]
[336049930,1724681446792,-651.25,0.00010988,2]
[336049932,1724681446801,-500.0,0.00010988,2]
[336049934,1724681446810,-669.41,0.00010988,2]
[336049936,1724681446819,-500.0,0.00010988,2]
[336049938,1724681446828,-500.0,0.00010988,2]
[336049940,1724681446838,-500.0,0.00010988,2]
[336049942,1724681446847,-151.0,0.00010988,2]
[336049944,1724681446857,-151.0,0.00010988,2]
[336049946,1724681446867,-500.0,0.00010988,2]
[336049948,1724681446876,-771.81,0.00010988,2]
[336049950,1724681446885,-509.89,0.00010988,2]
[336049952,1724681446894,-668.46,0.00010988,2]
[336049954,1724681446903,-637.99,0.00010988,2]
[336049956,1724681446915,-500.0,0.00010988,2]
[336049958,1724681446923,-500.0,0.00010988,2]
[336049960,1724681446932,-500.0,0.00010988,2]
[336049962,1724681446941,-500.0,0.00010988,2]
[336049964,1724681446951,-573.03960223,0.00010988,2]
[336049966,1724681446960,-500.0,0.00010988,2]
[336049968,1724681446969,-521.67357161,0.00010988,2]
[336049970,1724681446978,-602.89254596,0.00010988,2]
[336049972,1724681446987,-500.0,0.00010988,2]
[336049974,1724681446997,-500.0,0.00010988,2]
[336049976,1724681447006,-500.0,0.00010988,2]
[336049978,1724681447016,-500.0,0.00010988,2]
[336049980,1724681447025,-501.09292209,0.00010988,2]
[336049982,1724681447034,-151.0,0.00010988,2]
[336049984,1724681447043,-151.0,0.00010988,2]
[336049985,1724681447052,-500.0,0.00010988,2]
[336049987,1724681447062,-500.0,0.00010988,2]
[336049988,1724681447071,-500.0,0.00010988,2]
[336049989,1724681447081,-500.0,0.00010988,2]
[336049990,1724681447091,-151.0,0.00010988,2]
[336049991,1724681447099,-500.0,0.00010988,2]
[336049992,1724681447109,-500.0,0.00010988,2]
[336049994,1724681447118,-151.0,0.00010988,2]
[336049996,1724681447127,-500.0,0.00010988,2]
[336049998,1724681447137,-500.0,0.00010988,2]
[336050000,1724681447146,-151.0,0.00010988,2]
[336050002,1724681447155,-151.0,0.00010988,2]
[336050004,1724681447175,-731.49,0.00010988,2]
[336050006,1724681447184,-500.0,0.00010988,2]
[336050008,1724681447193,-500.46,0.00010988,2]
[336050010,1724681447203,-500.0,0.00010988,2]
[336050012,1724681447211,-733.755783,0.00010988,2]
[336050014,1724681447221,-733.755783,0.00010988,2]
[336050016,1724681447230,-500.0,0.00010988,2]
[336050018,1724681447239,-733.755783,0.00010988,2]
[336050020,1724681447248,-1055.84,0.00010988,2]
[336050022,1724681447258,-733.755783,0.00010988,2]
[336050024,1724681447267,-574.48,0.00010988,2]
[336050026,1724681447276,-151.0,0.00010988,2]
[336050028,1724681447285,-151.0,0.00010988,2]
[336050030,1724681447295,-313.69547735,0.00010988,2]
[336050032,1724681447304,-500.0,0.00010988,2]
[336050034,1724681447313,-606.81,0.00010988,2]
[336050036,1724681447324,-500.0,0.00010988,2]
[336050038,1724681447333,-500.0,0.00010988,2]
[336050040,1724681447342,-500.5847038,0.00010988,2]
[336050042,1724681447351,-578.34,0.00010988,2]
[336050044,1724681447360,-151.0,0.00010988,2]
[336050046,1724681447369,-151.0,0.00010988,2]
[336050048,1724681447385,-151.0,0.00010988,2]
[336050050,1724681447394,-151.0,0.00010988,2]
[336050052,1724681447404,-1646.51,0.00010988,2]
[336050054,1724681447413,-151.0,0.00010988,2]
[336050056,1724681447424,-151.0,0.00010988,2]
[336050058,1724681447433,-543.44833312,0.00010988,2]
[336050060,1724681447442,-500.0,0.00010988,2]
[336050062,1724681447453,-500.0,0.00010988,2]
[336050064,1724681447462,-1320.37315,0.00010988,2]
[336050066,1724681447471,-1320.37315,0.00010988,2]
[336050068,1724681447482,-502.8363714,0.00010988,2]
[336050070,1724681447491,-1320.37315,0.00010988,2]
[336050072,1724681447500,-500.0,0.00010988,2]
[336050074,1724681447509,-1320.37315,0.00010988,2]
[336050076,1724681447521,-294.941352,0.00010988,2]
[336050078,1724681447531,-294.941352,0.00010988,2]
[336050080,1724681447540,-2400.53,0.00010988,2]
[336050082,1724681447549,-151.0,0.00010988,2]
[336050084,1724681447558,-151.0,0.00010988,2]
[336050086,1724681447567,-151.0,0.00010988,2]
[336050088,1724681447576,-294.941352,0.00010988,2]
[336050090,1724681447585,-151.0,0.00010988,2]
[336050092,1724681447595,-294.941352,0.00010988,2]
[336050094,1724681447604,-500.0,0.00010988,2]
[336050096,1724681447613,-152.913888,0.00010988,2]
[336050098,1724681447623,-2240.82,0.00010988,2]
[336050100,1724681447632,-1532.14,0.00010988,2]
[336050102,1724681447641,-623.38,0.00010988,2]
[336050104,1724681447650,-1847.41,0.00010988,2]
[336050106,1724681447659,-500.0,0.00010988,2]
[336050108,1724681447676,-151.0,0.00010988,2]
[336050110,1724681447686,-151.0,0.00010988,2]
[336050112,1724681447696,-500.0,0.00010988,2]
[336050114,1724681447706,-438.09063,0.00010988,2]
[336050116,1724681447716,-260.09,0.00010988,2]
[336050118,1724681447725,-438.09063,0.00010988,2]
[336050120,1724681447734,-151.0,0.00010988,2]
[336050122,1724681447744,-500.0,0.00010989,2]
[336050124,1724681447754,-500.0,0.00010989,2]
[336050126,1724681447763,-500.0,0.00010989,2]
[336050128,1724681447772,-500.0,0.00010989,2]
[336050130,1724681447782,-500.0,0.00010989,2]
[336050132,1724681447791,-500.0,0.00010989,2]
[336050134,1724681447800,-500.0,0.00010989,2]
[336050136,1724681447809,-500.0,0.00010989,2]
[336050138,1724681447818,-341.65624813,0.00010989,2]
[336050140,1724681447827,-2918.69,0.00010989,2]
[336050142,1724681447836,-3063.85,0.00010989,2]
[336050144,1724681447846,-2480.22,0.00010989,2]
[336050147,1724681447855,-2260.99,0.00010989,2]
[336050149,1724681447865,-151.0,0.00010989,2]
[336050151,1724681447875,-2328.33,0.00010989,2]
[336050153,1724681447884,-179.435427,0.00010989,2]
[336050155,1724681447893,-3544.13,0.00010989,2]
[336050157,1724681447902,-179.435427,0.00010989,2]
[336050159,1724681447912,-213.415027,0.00010989,2]
[336050160,1724681447921,-213.415027,0.00010989,2]
[336050163,1724681447931,-3088.81,0.00010989,2]
[336050165,1724681447940,-151.0,0.00010989,2]
[336050167,1724681447949,-151.0,0.00010989,2]
[336050169,1724681447958,-3424.45,0.00010989,2]
[336050171,1724681447968,-167.123191,0.00010989,2]
[336050173,1724681447977,-151.0,0.00010989,2]
[336050175,1724681447986,-167.123191,0.00010989,2]
[336050176,1724681447995,-151.0,0.00010989,2]
[336050178,1724681448004,-151.0,0.00010989,2]
[336050181,1724681448014,-1735.96,0.00010989,2]
[336050182,1724681448023,-2620.26,0.00010989,2]
[336050184,1724681448032,-603.356574,0.00010989,2]
[336050187,1724681448042,-603.356574,0.00010989,2]
[336050189,1724681448051,-173.25,0.00010989,2]
[336050191,1724681448060,-173.25,0.00010989,2]
[336050193,1724681448069,-1104.373178,0.00010989,2]
[336050195,1724681448079,-1104.373178,0.00010989,2]
[336050197,1724681448089,-151.0,0.00010989,2]
[336050199,1724681448099,-1300.093552,0.00010989,2]
[336050201,1724681448108,-1300.093552,0.00010989,2]
[336050203,1724681448118,-360.760419,0.00010989,2]
[336050205,1724681448127,-151.0,0.00010989,2]
[336050207,1724681448136,-360.760419,0.00010989,2]
[336050209,1724681448146,-151.0,0.00010989,2]
[336050211,1724681448155,-151.0,0.00010989,2]
[336050213,1724681448167,-163.067643,0.00010989,2]
[336050215,1724681448176,-163.067643,0.00010989,2]
[336050217,1724681448185,-151.0,0.00010989,2]
[336050219,1724681448195,-151.0,0.00010989,2]
[336050221,1724681448204,-161.550911,0.00010989,2]
[336050223,1724681448213,-161.550911,0.00010989,2]
[336050225,1724681448223,-619.014736,0.00010989,2]
[336050227,1724681448232,-619.014736,0.00010989,2]
[336050229,1724681448242,-151.0,0.00010989,2]
[336050231,1724681448251,-151.0,0.00010989,2]
[336050233,1724681448261,-151.0,0.00010989,2]
[336050235,1724681448270,-151.0,0.00010989,2]
[336050237,1724681448280,-455.179551,0.00010989,2]
[336050239,1724681448289,-455.179551,0.00010989,2]
[336050241,1724681448300,-500.0,0.00010989,2]
[336050243,1724681448309,-500.0,0.00010989,2]
[336050245,1724681448319,-500.0,0.00010989,2]
[336050247,1724681448328,-151.0,0.00010989,2]
[336050249,1724681448337,-151.0,0.00010989,2]
[336050251,1724681448346,-151.0,0.00010989,2]
[336050253,1724681448355,-165.4,0.00010989,2]
[336050255,1724681448364,-500.0,0.00010989,2]
[336050257,1724681448374,-151.0,0.00010989,2]
[336050259,1724681448387,-151.0,0.00010989,2]
[336050261,1724681448396,-500.0,0.00010989,2]
[336050263,1724681448405,-7129.37,0.00010989,2]
[336050265,1724681448416,-500.0,0.00010989,2]
[336050267,1724681448426,-390.893197,0.00010989,2]
[336050269,1724681448435,-390.893197,0.00010989,2]
[336050271,1724681448444,-500.0,0.00010989,2]
[336050272,1724681448455,-500.0,0.00010989,2]
[336050274,1724681448464,-500.0,0.00010989,2]
[336050276,1724681448474,-256.8499873,0.0001099,2]
[336050278,1724681448484,-500.0,0.0001099,2]
[336050280,1724681448494,-500.0,0.0001099,2]
[336050282,1724681448503,-500.0,0.0001099,2]
[336050284,1724681448512,-500.0,0.0001099,2]
[336050286,1724681448521,-500.0,0.0001099,2]
[336050288,1724681448531,-500.0,0.0001099,2]
[336050290,1724681448540,-500.0,0.0001099,2]
[336050292,1724681448549,-500.0,0.0001099,2]
[336050294,1724681448559,-500.0,0.0001099,2]
[336050296,1724681448568,-500.0,0.0001099,2]
[336050298,1724681448577,-500.0,0.0001099,2]
[336050300,1724681448586,-293.07820746,0.0001099,2]
[336050302,1724681448595,-500.0,0.0001099,2]
[336050304,1724681448606,-500.0,0.0001099,2]
[336050306,1724681448616,-500.0,0.0001099,2]
[336050307,1724681448625,-509.53296962,0.0001099,2]
[336050309,1724681448635,-500.0,0.0001099,2]
[336050311,1724681448644,-500.0,0.0001099,2]
[336050313,1724681448654,-500.0,0.0001099,2]
[336050315,1724681448667,-500.0,0.0001099,2]
[336050317,1724681448677,-500.0,0.0001099,2]
[336050319,1724681448687,-500.0,0.0001099,2]
[336050321,1724681448697,-500.0,0.0001099,2]
[336050323,1724681448706,-519.10412078,0.0001099,2]
[336050325,1724681448715,-509.40278361,0.0001099,2]
[336050327,1724681448724,-500.0,0.0001099,2]
[336050329,1724681448734,-500.0,0.0001099,2]
[336050331,1724681448744,-500.79299872,0.0001099,2]
[336050333,1724681448753,-500.46995717,0.0001099,2]
[336050335,1724681448763,-500.0,0.0001099,2]
[336050337,1724681448772,-529.08,0.0001099,2]
[336050339,1724681448781,-246.54826089,0.0001099,2]
[336050341,1724681448791,-500.0,0.0001099,2]
[336050343,1724681448801,-500.0,0.0001099,2]
[336050345,1724681448810,-535.23,0.0001099,2]
[336050347,1724681448819,-543.9101318,0.0001099,2]
[336050349,1724681448829,-500.0,0.0001099,2]
[336050351,1724681448838,-500.95236894,0.0001099,2]
[336050353,1724681448847,-508.36019354,0.0001099,2]
[336050354,1724681448857,-500.0,0.0001099,2]
[336050356,1724681448868,-500.0,0.0001099,2]
[336050358,1724681448877,-500.0,0.0001099,2]
[336050360,1724681448887,-500.0,0.0001099,2]
[336050362,1724681448897,-500.0,0.0001099,2]
[336050364,1724681448906,-500.0,0.0001099,2]
[336050366,1724681448920,-500.0,0.0001099,2]
[336050368,1724681448930,-918.77,0.0001099,2]
[336050370,1724681448941,-500.0,0.0001099,2]
[336050372,1724681448951,-500.0,0.0001099,2]
[336050374,1724681448960,-500.0,0.0001099,2]
[336050376,1724681448970,-1524.94,0.0001099,2]
[336050378,1724681448979,-523.50012014,0.0001099,2]
[336050380,1724681448988,-686.63,0.0001099,2]
[336050382,1724681448998,-1031.66,0.0001099,2]
[336050384,1724681449008,-507.01961507,0.0001099,2]
[336050386,1724681449017,-500.0,0.0001099,2]
[336050388,1724681449026,-500.0,0.0001099,2]
[336050390,1724681449035,-500.0,0.0001099,2]
[336050392,1724681449045,-505.32997911,0.0001099,2]
[336050394,1724681449054,-500.0,0.0001099,2]
[336050408,1724681449192,-500.0,0.0001099,2]
[336050410,1724681449201,-821.08,0.0001099,2]
[336050412,1724681449211,-796.95,0.0001099,2]